fUST/lending_fUST_20251002
["ID","MTS","AMOUNT","RATE_DAILY","PERIOD"]
[388836985,1759409457752,-1047.85041466,0.00022377,2]
[388836986,1759409457761,-1000.0,0.00022377,2]
[388836987,1759409457771,-166.06675539,0.00022383,2]
[388836988,1759409457780,-400.0,0.0002239,3]
[388836989,1759409457790,-682.44167513,0.0002239,2]
[388836990,1759409457799,-900.0,0.00022466,2]
[388836991,1759409457808,-166.0,0.000225,3]
[388836992,1759409457817,-156.0,0.000225,3]
[388836993,1759409457826,-156.0,0.000225,3]
[388836994,1759409457835,-156.0,0.000225,3]
[388836995,1759409457844,-157.44102217,0.000225,3]
[388836996,1759409457853,-156.0,0.000225,3]
[388836997,1759409457863,-175.0,0.000225,3]
[388836998,1759409457872,-173.34516745,0.000225,3]
[388836999,1759409457881,-172.0,0.000225,3]
[388837000,1759409457891,-175.0,0.000225,3]
[388837001,1759409457900,-166.0,0.000225,3]
[388837002,1759409457909,-164.13530603,0.000225,3]
[388837003,1759409457918,-151.0,0.000225,3]
[388837004,1759409457928,-151.0,0.000225,3]
[388837005,1759409457937,-151.0,0.000225,3]
[388837006,1759409457946,-151.0,0.000225,3]
[388837007,1759409457955,-215.4065713,0.000225,3]
[388837008,1759409457964,-151.0,0.000225,3]
[388837009,1759409457973,-151.0,0.000225,3]
[388837010,1759409457982,-977.0,0.0002254,2]
[388837011,1759409457991,-176.75575821,0.000226,2]
[388837012,1759409458002,-760.0,0.00022666,2]
[388837013,1759409458012,-1000.0,0.00022689,2]
[388837014,1759409458021,-1500.0,0.00022696,2]
[388837015,1759409458030,-220.0,0.00022712,8]
[388837016,1759409458040,-1500.0,0.00022796,2]
[388837017,1759409458049,-160.0,0.000228,7]
[388837018,1759409458058,-4000.0,0.00022808,2]
[388837019,1759409458068,-977.0,0.00022814,2]
[388837020,1759409458077,-1500.0,0.00022826,2]
[388837021,1759409458086,-1489.18641718,0.00022826,2]
[388837022,1759409458096,-1500.0,0.00022826,2]
[388837023,1759409458105,-1500.0,0.00022826,2]
[388837024,1759409458114,-2200.0,0.00022838,2]
[388837025,1759409458123,-829.188,0.00022838,2]
[388837026,1759409458133,-150.0,0.00022838,2]
[388837027,1759409458142,-5174.0,0.0002287,2]
[388837028,1759409458151,-626.69261795,0.00022888,2]
[388837029,1759409458159,-1503.58727838,0.00022924,2]
[388837030,1759409458168,-500.0,0.00022924,2]
[388837031,1759409458178,-1500.0,0.00022924,2]
[388837032,1759409458187,-1500.0,0.00022924,2]
[388837033,1759409458196,-1255.75089952,0.00022924,2]
[388837034,1759409458205,-1500.0,0.00022924,2]
[388837035,1759409458215,-1015.0,0.00023,2]
[388837036,1759409458224,-46474.0,0.00023,20]
[388837037,1759409458234,-500.0,0.00023,2]
[388837038,1759409458243,-238.0,0.00023,2]
[388837039,1759409458253,-234.00747223,0.00023,3]
[388837040,1759409458262,-900.0,0.00023014,2]
[388837041,1759409458272,-600.0,0.0002304,2]
[388837042,1759409458281,-150.0,0.00023056,2]
[388837043,1759409458290,-977.0,0.00023088,2]
[388837044,1759409458300,-4265.9586878,0.00023104,2]
[388837045,1759409458312,-860.0,0.00023214,2]
[388837046,1759409458322,-1500.0,0.00023237,2]
[388837047,1759409458338,-2000.0,0.00023244,2]
[388837048,1759409458347,-600.0,0.0002328,2]
[388837049,1759409458356,-151.0,0.00023288,7]
[388837050,1759409458365,-151.0,0.00023288,7]
[388837051,1759409458379,-151.0,0.00023288,7]
[388837052,1759409458388,-150.0,0.00023338,2]
[388837053,1759409458397,-564.30932076,0.00023344,2]
[388837054,1759409458406,-4500.0,0.00023356,2]
[388837055,1759409458416,-823.0,0.0002336,2]
[388837056,1759409458426,-977.0,0.00023362,2]
[388837057,1759409458435,-500.0,0.00023374,2]
[388837058,1759409458444,-2000.0,0.00023374,2]
[388837059,1759409458453,-2000.0,0.00023374,2]
[388837060,1759409458463,-390.3504546,0.00023388,2]
[388837061,1759409458472,-83407.8759703,0.00023398,2]
[388837062,1759409458481,-1001.50742251,0.00023472,2]
[388837063,1759409458491,-1501.94134755,0.00023472,2]
[388837064,1759409458503,-2000.0,0.00023472,2]
[388837065,1759409458514,-161.33723995,0.00023507,2]
[388837066,1759409458524,-600.0,0.0002352,2]
[388837067,1759409458533,-900.0,0.00023562,2]
[388837068,1759409458544,-5000.0,0.00023578,2]
[388837069,1759409458553,-977.0,0.00023636,2]
[388837070,1759409458562,-707.27839714,0.00023651,5]
[388837071,1759409458571,-800.0,0.0002369,2]
[388837072,1759409458581,-3292.0,0.00023706,2]
[388837073,1759409458591,-161.33723995,0.00023726,2]
[388837074,1759409458600,-927.00557369,0.0002376,2]
[388837075,1759409458609,-960.0,0.00023762,2]
[388837076,1759409458618,-800.0,0.0002377,2]
[388837077,1759409458627,-449.27209535,0.00023785,2]
[388837078,1759409458637,-2500.0,0.00023792,2]
[388837079,1759409458646,-156.88214,0.00023833,2]
[388837080,1759409458655,-150.0,0.00023838,2]
[388837081,1759409458664,-159.574748,0.0002384,2]
[388837082,1759409458673,-978.45347922,0.00023904,2]
[388837083,1759409458682,-977.0,0.0002391,2]
[388837084,1759409458691,-161.33723995,0.00023918,2]
[388837085,1759409458701,-2500.0,0.00023922,2]
[388837086,1759409458711,-2265.46084467,0.00023922,2]
[388837087,1759409458720,-800.0,0.00023941,2]
[388837088,1759409458729,-4000.0,0.00024,4]
[388837089,1759409458738,-5891.13,0.00024,2]
[388837090,1759409458747,-234.00747223,0.00024,7]
[388837091,1759409458757,-771.0,0.00024,5]
[388837092,1759409458767,-234.00747223,0.00024,7]
[388837093,1759409458776,-160.0,0.00024,7]
[388837094,1759409458785,-156.88214,0.00024,26]
[388837095,1759409458794,-1000.0,0.00024,2]
[388837096,1759409458804,-800.0,0.00024003,2]
[388837097,1759409458813,-2500.0,0.0002402,2]
[388837098,1759409458823,-900.0,0.0002411,2]
[388837099,1759409458833,-161.33723995,0.00024137,2]
[388837100,1759409458842,-977.0,0.00024183,2]
[388837101,1759409458852,-4986.07,0.000242,2]
[388837102,1759409458861,-5000.0,0.000242,7]
[388837103,1759409458871,-152.30532736,0.00024273,2]
[388837104,1759409458880,-500.0,0.00024273,2]
[388837105,1759409458889,-242696.84,0.000243,14]
[388837106,1759409458899,-234.00747223,0.000243,7]
[388837107,1759409458908,-1060.0,0.0002431,2]
[388837108,1759409458917,-150.0,0.00024338,2]
[388837109,1759409458926,-3000.0,0.0002434,2]
[388837110,1759409458935,-600.0,0.00024343,2]
[388837111,1759409458945,-161.33723995,0.00024356,2]
[388837112,1759409458955,-2000.0,0.000244,2]
[388837113,1759409458964,-2000.0,0.000244,2]
[388837114,1759409458974,-1074.399999,0.000244,2]
[388837115,1759409458983,-2000.0,0.000244,10]
[388837116,1759409458993,-1000.0,0.0002442,20]
[388837117,1759409459003,-800.0,0.00024431,2]
[388837118,1759409459012,-800.0,0.00024454,2]
[388837119,1759409459022,-977.0,0.00024457,2]
[388837120,1759409459031,-3000.0,0.0002447,2]
[388837121,1759409459040,-300.0,0.00024473,2]
[388837122,1759409459048,-156.88214,0.00024485,7]
[388837123,1759409459057,-156.88214,0.0002449,10]
[388837124,1759409459067,-219238.05926436,0.000245,27]
[388837125,1759409459076,-664.45100775,0.000245,2]
[388837126,1759409459085,-201093.64,0.000245,25]
[388837127,1759409459094,-1000.0,0.000245,2]
[388837128,1759409459104,-212.09,0.0002451,7]
[388837129,1759409459113,-161.33723995,0.00024548,2]
[388837130,1759409459122,-3000.0,0.00024568,2]
[388837131,1759409459131,-800.0,0.00024604,2]
[388837132,1759409459140,-150.0,0.00024627,2]
[388837133,1759409459149,-145733.47582239,0.0002465,2]
[388837134,1759409459162,-9211.51915754,0.0002465,2]
[388837135,1759409459177,-507.707036,0.0002465,2]
[388837136,1759409459190,-827.1512968,0.00024658,2]
[388837137,1759409459201,-150.0,0.00024658,2]
[388837138,1759409459213,-237.74985,0.00024658,7]
[388837139,1759409459227,-237.74985,0.00024658,7]
[388837140,1759409459241,-237.74985,0.00024658,7]
[388837141,1759409459254,-237.74985,0.00024658,7]
[388837142,1759409459268,-237.74985,0.00024658,7]
[388837143,1759409459282,-237.74985,0.00024658,7]
[388837144,1759409459294,-237.74985,0.00024658,7]
[388837145,1759409459307,-237.74985,0.00024658,7]
[388837146,1759409459319,-237.74985,0.00024658,7]
[388837147,1759409459332,-237.74985,0.00024658,7]
[388837148,1759409459344,-237.74985,0.00024658,7]
[388837149,1759409459355,-237.74985,0.00024658,7]
[388837150,1759409459367,-237.74985,0.00024658,7]
[388837151,1759409459379,-237.74985,0.00024658,7]
[388837152,1759409459392,-237.74985,0.00024658,7]
[388837153,1759409459405,-237.74985,0.00024658,7]
[388837154,1759409459420,-237.74985,0.00024658,7]
[388837155,1759409459434,-237.74985,0.00024658,7]
[388837156,1759409459449,-237.74985,0.00024658,7]
[388837157,1759409459460,-237.749844,0.00024658,7]
[388837158,1759409459470,-237.187553,0.00024658,7]
[388837159,1759409459483,-237.187553,0.00024658,7]
[388837160,1759409459497,-237.187553,0.00024658,7]
[388837161,1759409459515,-237.187553,0.00024658,7]
[388837162,1759409459527,-237.187553,0.00024658,7]
[388837163,1759409459538,-237.187553,0.00024658,7]
[388837164,1759409459552,-237.187553,0.00024658,7]
[388837165,1759409459563,-237.187553,0.00024658,7]
[388837166,1759409459575,-237.187553,0.00024658,7]
[388837167,1759409459587,-237.187553,0.00024658,7]
[388837168,1759409459599,-237.187553,0.00024658,7]
[388837169,1759409459610,-237.187553,0.00024658,7]
[388837170,1759409459630,-237.187553,0.00024658,7]
[388837171,1759409459646,-237.187553,0.00024658,7]
[388837172,1759409459658,-237.187553,0.00024658,7]
[388837173,1759409459670,-237.187553,0.00024658,7]
[388837174,1759409459681,-237.187553,0.00024658,7]
[388837175,1759409459693,-237.187553,0.00024658,7]
[388837176,1759409459705,-237.187553,0.00024658,7]
[388837177,1759409459717,-237.187545,0.00024658,7]
[388837178,1759409459729,-151.0,0.00024658,7]
[388837179,1759409459742,-151.0,0.00024658,7]
[388837180,1759409459754,-184.726606,0.00024658,7]
[388837181,1759409459766,-200.0,0.00024658,15]
[388837182,1759409459778,-380.0,0.00024658,2]
[388837183,1759409459790,-151.0,0.00024658,7]
[388837184,1759409459803,-151.0,0.00024658,7]
[388837185,1759409459817,-151.0,0.00024658,7]
[388837186,1759409459830,-151.0,0.00024658,7]
[388837187,1759409459842,-151.0,0.00024658,7]
[388837188,1759409459854,-151.0,0.00024658,7]
[388837189,1759409459866,-151.0,0.00024658,7]
[388837190,1759409459877,-151.0,0.00024658,7]
[388837191,1759409459889,-151.0,0.00024658,7]
[388837192,1759409459900,-190.925661,0.00024658,7]
[388837193,1759409459912,-151.0,0.00024658,2]
[388837194,1759409459924,-538.0,0.00024658,2]
[388837195,1759409459936,-977.0,0.00024731,2]
[388837196,1759409459948,-160.0,0.0002475,5]
[388837197,1759409459959,-150.0,0.0002476,2]
[388837198,1759409459971,-800.0,0.00024763,2]
[388837199,1759409459983,-800.0,0.00024771,2]
[388837200,1759409459994,-16625.44862943,0.00024774,2]
[388837201,1759409460006,-1967.699541,0.0002478,5]
[388837202,1759409460018,-1739.26229877,0.000248,4]
[388837203,1759409460029,-96514.73741295,0.000248,26]
[388837204,1759409460818,5000.0,0.00017705,2]
[388837205,1759409460851,-500.0,0.00017883,2]
[388837206,1759409460861,-267.279532,0.00018998,2]
[388837207,1759409460870,-267.279532,0.00019,2]
[388837208,1759409460879,-267.279532,0.00019,2]
[388837209,1759409460889,-267.279532,0.00019063,2]
[388837210,1759409460898,-27.66989239,0.00019221,2]
[388837211,1759409460909,-239.60963261,0.00019221,2]
[388837212,1759409460918,-200.0,0.00024547,2]
[388837213,1759409460927,-1805.64300152,0.000248,26]
[388837214,1759409461630,463.70534363,0.00017794,2]
[388837215,1759409469607,5000.0,0.00017794,2]
[388837217,1759409492447,5000.0,0.00017794,2]
[388837218,1759409515712,0.01,0.00017794,2]
[388837219,1759409515736,4999.99,0.00017794,2]
[388837220,1759409538506,5000.0,0.00017794,2]
[388837221,1759409555404,10000.0,0.00028767,120]
[388837222,1759409562069,0.02,0.00017794,2]
[388837223,1759409562092,4999.98,0.00017794,2]
[388837224,1759409585097,5000.0,0.00017794,2]
[388837225,1759409608026,0.03,0.00017794,2]
[388837226,1759409608050,4999.97,0.00017794,2]
[388837227,1759409616185,10000.0,0.00028767,120]
[388837228,1759409628362,500.0,0.00027397,120]
[388837229,1759409630767,5000.0,0.00017794,2]
[388837230,1759409652235,500.0,0.00024,120]
[388837231,1759409653081,500.0,0.00024,120]
[388837232,1759409653509,5000.0,0.000178,2]
[388837233,1759409654145,500.0,0.00024,120]
[388837234,1759409655266,500.0,0.00024,120]
[388837235,1759409656680,500.0,0.00024,120]
[388837236,1759409657484,500.0,0.00024,120]
[388837237,1759409658289,500.0,0.00024,120]
[388837238,1759409659403,500.0,0.00024,120]
[388837239,1759409660239,500.0,0.00024,120]
[388837240,1759409661285,500.0,0.00024,120]
[388837241,1759409661842,500.0,0.00024,120]
[388837242,1759409662669,500.0,0.00024,120]
[388837243,1759409663800,500.0,0.00024,120]
[388837244,1759409665030,500.0,0.00024,120]
[388837245,1759409670064,500.0,0.00024,120]
[388837246,1759409670655,500.0,0.00024,120]
[388837247,1759409671484,500.0,0.00024,120]
[388837248,1759409672269,500.0,0.00024,120]
[388837249,1759409673038,152.0,0.00024,120]
[388837250,1759409673124,500.0,0.00024,120]
[388837251,1759409673904,500.0,0.00024,120]
[388837252,1759409674435,152.0,0.000256,120]
[388837253,1759409674697,500.0,0.00024,120]
[388837254,1759409675825,595.51,0.00024,120]
[388837255,1759409675877,152.0,0.000271,120]
[388837256,1759409676690,5000.0,0.000178,2]
[388837257,1759409677300,152.0,0.000287,120]
[388837258,1759409687873,794.0,0.0002191,120]
[388837259,1759409688310,794.0,0.000219,120]
[388837260,1759409688752,794.0,0.0002189,120]
[388837261,1759409689204,794.0,0.0002498,120]
[388837262,1759409689749,794.0,0.0002497,120]
[388837263,1759409690184,794.0,0.0002496,120]
[388837264,1759409699444,0.01,0.000178,2]
[388837265,1759409699467,4999.99,0.000178,2]
[388837266,1759409722168,5000.0,0.000178,2]
[388837267,1759409731034,608.0,0.00025696,120]
[388837268,1759409732264,608.0,0.00026981,120]
[388837269,1759409733495,608.0,0.0002833,120]
[388837270,1759409744922,0.02,0.000178,2]
[388837271,1759409744945,4999.98,0.000178,2]
[388837272,1759409767746,5000.0,0.000178,2]
[388837274,1759409779959,0.03,0.00017783,2]
[388837275,1759409779982,1790.75339308,0.00017783,2]
[388837276,1759409790474,5000.0,0.000178,2]
[388837277,1759409802816,184.38979694,0.00017783,2]
[388837278,1759409808662,152.0,0.0002191,120]
[388837279,1759409808693,152.0,0.000219,120]
[388837280,1759409809106,152.0,0.0002189,120]
[388837281,1759409809543,152.0,0.0002498,120]
[388837282,1759409809975,152.0,0.0002497,120]
[388837283,1759409810419,152.0,0.0002496,120]
[388837284,1759409813393,3024.86680998,0.000178,2]
[388837285,1759409813416,1975.13319002,0.000178,2]
[388837286,1759409823722,1000.0,0.00028767,120]
[388837287,1759409830169,1000.0,0.00028767,120]
[388837288,1759409837127,5000.0,0.000178,2]
[388837289,1759409840456,1000.0,0.00028767,120]
[388837290,1759409846728,1000.0,0.00028767,120]
[388837291,1759409852796,1000.0,0.00028767,120]
[388837292,1759409860063,1000.0,0.00028767,120]
[388837293,1759409860137,3024.87680998,0.000178,2]
[388837294,1759409860160,1975.12319002,0.000178,2]
[388837295,1759409862011,-237.42,0.000178,2]
[388837296,1759409862039,-300.0,0.000178,2]
[388837297,1759409862068,-300.0,0.000178,2]
[388837298,1759409862099,-300.0,0.000178,2]
[388837299,1759409864609,7725.17,0.00016907,2]
[388837300,1759409864632,10000.01,0.00016907,2]
[388837301,1759409864655,2294.9499741,0.00016907,2]
[388837302,1759409866401,1000.0,0.00028767,120]
[388837303,1759409870735,300.0,0.000178,2]
[388837309,1759409875395,1000.0,0.00028767,120]
[388837310,1759409881786,1000.0,0.00028767,120]
[388837311,1759409883413,5000.0,0.000178,2]
[388837312,1759409888616,1000.0,0.00028767,120]
[388837313,1759409894543,1000.0,0.00028767,120]
[388837314,1759409900912,1000.0,0.00028767,120]
[388837315,1759409904657,666.0,0.00016933,2]
[388837316,1759409906438,1739.0600259,0.000178,2]
[388837317,1759409906461,3260.9399741,0.000178,2]
[388837318,1759409910717,1000.0,0.00028767,120]
[388837326,1759409929090,5000.0,0.000178,2]
[388837328,1759409930582,1000.00298,0.00028767,120]
[388837334,1759409940905,500.0,0.00027397,120]
[388837335,1759409941818,300.0,0.000178,2]
[388837336,1759409945453,1000.0,0.00016933,2]
[388837337,1759409952580,439.0700259,0.000178,2]
[388837338,1759409952606,4560.9299741,0.000178,2]
[388837339,1759409952777,300.0,0.000178,2]
[388837340,1759409954993,1000.0,0.00028767,120]
[388837341,1759409964255,300.0,0.000178,2]
[388837342,1759409975224,2278.42546633,0.000178,2]
[388837343,1759409995585,319.4,0.00028767,120]
[388837344,1759410036459,243.0,0.00027343,120]
[388837345,1759410037874,243.0,0.00028711,120]
[388837346,1759410049355,150.5,0.0002191,120]
[388837347,1759410049385,318.0,0.0002191,120]
[388837348,1759410049841,150.5,0.000219,120]
[388837349,1759410049877,318.0,0.000219,120]
[388837350,1759410050288,318.0,0.0002189,120]
[388837351,1759410050319,150.5,0.0002189,120]
[388837352,1759410050734,162.9,0.0002661,120]
[388837353,1759410050842,318.0,0.0002661,120]
[388837354,1759410051279,318.0,0.000266,120]
[388837355,1759410051730,318.0,0.0002659,120]
[388837356,1759410066191,1566.93546891,0.00017783,2]
[388837357,1759410109974,550.0,0.000273,120]
[388837358,1759410137698,170.207919,0.00016999,2]
[388837359,1759410162651,-1200.0,0.00017872,2]
[388837360,1759410162680,-300.0,0.00017872,2]
[388837361,1759410162711,-1200.0,0.00017872,2]
[388837362,1759410182329,300.0,0.00017872,2]
[388837363,1759410201052,239.0,0.00028767,120]
[388837365,1759410214907,298.326,0.00028767,120]
[388837366,1759410242639,300.0,0.00017872,2]
[388837367,1759410302973,300.0,0.00017872,2]
[388837368,1759410304982,1200.0,0.00017872,2]
[388837375,1759410339361,162.0,0.00027349,120]
[388837376,1759410340948,162.0,0.00028716,120]
[388837383,1759410348228,1371.06853534,0.00017783,2]
[388837398,1759410409113,150.5,0.0002191,120]
[388837399,1759410409556,150.5,0.000219,120]
[388837400,1759410410005,150.5,0.0002189,120]
[388837401,1759410410489,150.5,0.0002498,120]
[388837402,1759410410947,150.5,0.0002497,120]
[388837403,1759410411401,150.5,0.0002496,120]
[388837410,1759410452800,1000.0,0.00028767,120]
[388837411,1759410455758,1128.94146466,0.00017135,2]
[388837412,1759410455781,688.44807624,0.00017135,2]
[388837420,1759410472937,500.0,0.00028767,120]
[388837422,1759410496871,507.4,0.00028767,120]
[388837425,1759410517626,-150.0,0.00017873,2]
[388837426,1759410517651,-256.86,0.00017873,2]
[388837427,1759410517677,-1200.0,0.00017882,2]
[388837428,1759410517702,-300.0,0.00017882,2]
[388837429,1759410517730,-500.0,0.00017883,2]
[388837430,1759410517754,-1025.37522521,0.00017883,2]
[388837431,1759410517780,-496.12206714,0.00017883,2]
[388837432,1759410517805,-313.38187076,0.00017883,2]
[388837433,1759410517830,-216.28394228,0.00017883,2]
[388837434,1759410517855,-500.0,0.00017883,2]
[388837435,1759410517879,-629.4675456,0.00017883,2]
[388837436,1759410517902,-500.0,0.00017883,2]
[388837437,1759410517928,-500.0,0.00017883,2]
[388837438,1759410517952,-581.13764314,0.00017883,2]
[388837439,1759410517982,-500.0,0.00017883,2]
[388837440,1759410518012,-500.0,0.00017883,2]
[388837441,1759410518041,-500.0,0.00017883,2]
[388837442,1759410518072,-500.0,0.00017883,2]
[388837443,1759410518102,-500.0,0.00017883,2]
[388837444,1759410518135,-500.0,0.00017883,2]
[388837445,1759410518163,-500.0,0.00017883,2]
[388837446,1759410518188,-500.0,0.00017883,2]
[388837447,1759410518217,-500.0,0.00017883,2]
[388837448,1759410518244,-500.0,0.00017883,2]
[388837449,1759410518270,-500.0,0.00017883,2]
[388837450,1759410518296,-620.95460095,0.00017883,2]
[388837451,1759410518321,-621.42585561,0.00017883,2]
[388837452,1759410518349,-500.0,0.00017883,2]
[388837453,1759410518373,-500.0,0.00017883,2]
[388837454,1759410518398,-500.0,0.00017883,2]
[388837455,1759410518423,-500.0,0.00017883,2]
[388837456,1759410518448,-500.0,0.00017883,2]
[388837457,1759410518474,-500.0,0.00017883,2]
[388837458,1759410518500,-500.0,0.00017883,2]
[388837459,1759410518525,-500.0,0.00017883,2]
[388837460,1759410518550,-500.0,0.00017883,2]
[388837461,1759410518578,-588.63696258,0.00017883,2]
[388837462,1759410518604,-500.0,0.00017883,2]
[388837463,1759410518631,-586.47958957,0.00017883,2]
[388837464,1759410518657,-500.0,0.00017883,2]
[388837465,1759410518685,-500.0,0.00017883,2]
[388837466,1759410518710,-500.0,0.00017883,2]
[388837467,1759410518740,-500.0,0.00017883,2]
[388837468,1759410518768,-500.0,0.00017883,2]
[388837469,1759410518794,-500.0,0.00017883,2]
[388837470,1759410518822,-500.0,0.00017883,2]
[388837471,1759410518849,-277.59530864,0.00017883,2]
[388837472,1759410518875,-500.0,0.00017883,2]
[388837473,1759410518903,-500.0,0.00017883,2]
[388837474,1759410518928,-500.0,0.00017883,2]
[388837475,1759410518954,-500.0,0.00017883,2]
[388837476,1759410518980,-500.0,0.00017883,2]
[388837477,1759410519006,-500.0,0.00017883,2]
[388837478,1759410519031,-500.0,0.00017883,2]
[388837479,1759410519056,-500.0,0.00017883,2]
[388837480,1759410519081,-500.0,0.00017883,2]
[388837481,1759410519108,-500.0,0.00017883,2]
[388837482,1759410519138,-500.0,0.00017883,2]
[388837483,1759410519166,-500.0,0.00017883,2]
[388837484,1759410519191,-500.0,0.00017883,2]
[388837485,1759410519218,-500.0,0.00017883,2]
[388837486,1759410519242,-500.0,0.00017883,2]
[388837487,1759410519269,-500.0,0.00017883,2]
[388837488,1759410519293,-500.0,0.00017883,2]
[388837489,1759410519318,-500.0,0.00017883,2]
[388837490,1759410519343,-500.0,0.00017883,2]
[388837491,1759410519367,-500.0,0.00017883,2]
[388837492,1759410519392,-500.0,0.00017883,2]
[388837493,1759410519425,-500.0,0.00017883,2]
[388837494,1759410519451,-500.0,0.00017883,2]
[388837495,1759410519476,-500.0,0.00017883,2]
[388837496,1759410519502,-500.0,0.00017883,2]
[388837497,1759410519527,-500.0,0.00017883,2]
[388837498,1759410519551,-500.0,0.00017883,2]
[388837499,1759410519575,-429.5372104,0.00017883,2]
[388837500,1759410519600,-500.0,0.00017883,2]
[388837501,1759410519624,-651.17203913,0.00017883,2]
[388837502,1759410519650,-500.0,0.00017883,2]
[388837503,1759410519879,-500.0,0.00017883,2]
[388837504,1759410519908,-196.42584829,0.00017883,2]
[388837505,1759410519934,-500.0,0.00017883,2]
[388837506,1759410519959,-500.0,0.00017883,2]
[388837507,1759410519984,-500.0,0.00017883,2]
[388837508,1759410520011,-500.0,0.00017883,2]
[388837509,1759410520036,-500.0,0.00017883,2]
[388837510,1759410520061,-500.0,0.00017883,2]
[388837511,1759410520084,-500.0,0.00017883,2]
[388837512,1759410520107,-500.0,0.00017883,2]
[388837513,1759410520135,-500.0,0.00017883,2]
[388837514,1759410520158,-500.0,0.00017883,2]
[388837515,1759410520184,-500.0,0.00017883,2]
[388837516,1759410520210,-500.0,0.00017883,2]
[388837517,1759410520236,-370000.0,0.00017884,2]
[388837518,1759410520259,-83859.1442907,0.0001799,2]
[388837519,1759410531273,10000.01,0.00017784,2]
[388837520,1759410531295,10000.01,0.00017784,2]
[388837521,1759410531318,10000.01,0.00017784,2]
[388837522,1759410531341,10000.01,0.00017784,2]
[388837523,1759410531363,10000.01,0.00017784,2]
[388837524,1759410531385,10000.01,0.00017784,2]
[388837525,1759410531406,10000.01,0.00017784,2]
[388837526,1759410531428,10000.01,0.00017784,2]
[388837527,1759410531451,10000.01,0.00017784,2]
[388837528,1759410531474,10000.01,0.00017784,2]
[388837530,1759410543353,-300.0,0.00017783,2]
[388837531,1759410544115,-4771.14456177,0.00017784,2]
[388837532,1759410544229,-10000.01,0.00017784,2]
[388837533,1759410544355,-10000.01,0.00017784,2]
[388837534,1759410544488,-10000.01,0.00017784,2]
[388837535,1759410544609,-10000.01,0.00017784,2]
[388837536,1759410545375,-10000.01,0.00017784,2]
[388837537,1759410545580,-10000.01,0.00017784,2]
[388837538,1759410545711,-10000.01,0.00017784,2]
[388837539,1759410545834,-10000.01,0.00017784,2]
[388837540,1759410545989,-10000.01,0.00017784,2]
[388837541,1759410549815,-10000.01,0.00017784,2]
[388837542,1759410549830,-10000.01,0.00017784,2]
[388837543,1759410549846,-10000.01,0.00017784,2]
[388837544,1759410549872,-10000.01,0.00017784,2]
[388837545,1759410549988,-10000.01,0.00017784,2]
[388837546,1759410551553,-5000.0,0.00017606,14]
[388837547,1759410551590,-0.01,0.00017784,2]
[388837548,1759410551765,-10000.01,0.00017784,2]